fUST/lending_fUST_20250505
["ID","MTS","AMOUNT","RATE_DAILY","PERIOD"]
[359935485,1746432652528,-973.17,0.0003726,14]
[359935486,1746432652537,-400.0,0.0003726,14]
[359935487,1746432652547,-1500.0,0.0003726,4]
[359935488,1746432652556,-12809.51,0.000374,30]
[359935489,1746432652566,-151.0,0.000374,14]
[359935490,1746432652575,-293.24491777,0.0003743,2]
[359935491,1746432652585,-400.0,0.00037534,14]
[359935492,1746432652594,-400.0,0.00037534,14]
[359935493,1746432652603,-400.0,0.00037534,14]
[359935494,1746432652612,-683.03,0.00037534,14]
[359935495,1746432652621,-400.0,0.00037534,14]
[359935496,1746432652631,-400.0,0.00037534,14]
[359935497,1746432652640,-1075.05,0.00037534,14]
[359935498,1746432652650,-628.89,0.00037534,14]
[359935499,1746432652659,-400.0,0.00037534,14]
[359935500,1746432652668,-400.0,0.00037534,14]
[359935501,1746432652677,-400.0,0.00037534,14]
[359935502,1746432652687,-428.84,0.00037534,14]
[359935503,1746432652697,-1008.57,0.00037534,14]
[359935504,1746432652708,-400.0,0.00037534,14]
[359935505,1746432652718,-400.0,0.00037534,14]
[359935506,1746432652729,-452.9,0.00037534,14]
[359935507,1746432652739,-400.0,0.00037534,14]
[359935508,1746432652749,-400.0,0.00037534,14]
[359935509,1746432652759,-400.0,0.00037534,14]
[359935510,1746432652768,-201.73251003,0.00037534,14]
[359935511,1746432652778,-400.0,0.00037534,14]
[359935512,1746432652787,-400.0,0.00037534,14]
[359935513,1746432652797,-400.0,0.00037534,14]
[359935514,1746432652806,-1471.68,0.00037534,14]
[359935515,1746432652815,-400.0,0.00037534,14]
[359935516,1746432652825,-400.0,0.00037534,14]
[359935517,1746432652835,-400.0,0.00037534,14]
[359935518,1746432652844,-400.0,0.00037534,14]
[359935519,1746432652854,-1359.03,0.00037534,14]
[359935520,1746432652864,-407.84,0.00037534,14]
[359935521,1746432652873,-400.0,0.00037534,14]
[359935522,1746432652883,-400.0,0.00037534,14]
[359935523,1746432652892,-400.0,0.00037534,14]
[359935524,1746432652903,-478.13,0.00037534,14]
[359935525,1746432652914,-400.0,0.00037534,14]
[359935526,1746432652925,-400.0,0.00037534,14]
[359935527,1746432652937,-400.0,0.00037534,14]
[359935528,1746432652947,-991.79,0.00037534,14]
[359935529,1746432652957,-20929.32,0.00037534,14]
[359935530,1746432652966,-473.96,0.00037534,14]
[359935531,1746432652976,-710.15,0.00037534,14]
[359935532,1746432652985,-1011.15,0.00037534,14]
[359935533,1746432652996,-400.0,0.00037534,14]
[359935534,1746432653006,-294.98,0.00037534,14]
[359935535,1746432653015,-400.0,0.00037534,14]
[359935536,1746432653024,-1281.84,0.00037534,14]
[359935537,1746432653034,-400.0,0.00037534,14]
[359935538,1746432653045,-1335.19,0.00037534,14]
[359935539,1746432653055,-593.4,0.00037534,14]
[359935540,1746432653065,-2951.14,0.00037534,14]
[359935541,1746432653075,-400.0,0.00037534,14]
[359935542,1746432653085,-400.0,0.00037534,14]
[359935543,1746432653095,-400.0,0.00037534,14]
[359935544,1746432653105,-400.0,0.00037534,14]
[359935545,1746432653114,-400.0,0.00037534,14]
[359935546,1746432653124,-400.0,0.00037534,14]
[359935547,1746432653134,-562.12,0.00037534,14]
[359935548,1746432653143,-1758.11,0.00037534,14]
[359935549,1746432653152,-1394.95,0.00037534,14]
[359935550,1746432653164,-400.0,0.00037534,14]
[359935551,1746432653173,-400.0,0.00037534,14]
[359935552,1746432653183,-492.47,0.00037534,14]
[359935553,1746432653193,-902.78,0.00037534,14]
[359935554,1746432653203,-785.12,0.00037534,14]
[359935555,1746432653212,-460.9,0.00037534,14]
[359935556,1746432653221,-433.08,0.00037534,14]
[359935557,1746432653233,-448.81,0.00037534,14]
[359935558,1746432653253,-400.0,0.00037534,14]
[359935559,1746432653265,-400.0,0.00037534,14]
[359935560,1746432653305,-400.0,0.00037534,14]
[359935561,1746432653315,-400.0,0.00037534,14]
[359935562,1746432653326,-1058.9,0.00037534,14]
[359935563,1746432653335,-2659.22,0.00037534,14]
[359935564,1746432653345,-712.06,0.00037534,14]
[359935565,1746432653354,-910.59,0.00037534,14]
[359935566,1746432653364,-400.0,0.00037534,14]
[359935567,1746432653374,-973.17,0.00037534,14]
[359935568,1746432653383,-400.0,0.00037534,14]
[359935569,1746432653393,-1034.98887875,0.00037542,5]
[359935570,1746432653403,-265.33085839,0.00037546,5]
[359935571,1746432653413,-457.30942968,0.0003759,37]
[359935572,1746432653423,-500.0,0.00037726,60]
[359935573,1746432653432,-403.0,0.00037728,2]
[359935574,1746432653442,-400.0,0.00037808,14]
[359935575,1746432653451,-400.0,0.00037808,14]
[359935576,1746432653460,-400.0,0.00037808,14]
[359935577,1746432653470,-683.03,0.00037808,14]
[359935578,1746432653479,-400.0,0.00037808,14]
[359935579,1746432653488,-400.0,0.00037808,14]
[359935580,1746432653497,-1075.05,0.00037808,14]
[359935581,1746432653507,-628.89,0.00037808,14]
[359935582,1746432653516,-400.0,0.00037808,14]
[359935583,1746432653525,-400.0,0.00037808,14]
[359935584,1746432653536,-400.0,0.00037808,14]
[359935585,1746432653546,-428.84,0.00037808,14]
[359935586,1746432653556,-1008.57,0.00037808,14]
[359935587,1746432653565,-448.83,0.00037808,14]
[359935588,1746432653577,-400.0,0.00037808,14]
[359935589,1746432653586,-452.9,0.00037808,14]
[359935590,1746432653596,-400.0,0.00037808,14]
[359935591,1746432653605,-400.0,0.00037808,14]
[359935592,1746432653615,-400.0,0.00037808,14]
[359935593,1746432653625,-400.0,0.00037808,14]
[359935594,1746432653636,-400.0,0.00037808,14]
[359935595,1746432653647,-400.0,0.00037808,14]
[359935596,1746432653658,-1471.68,0.00037808,14]
[359935597,1746432653668,-400.0,0.00037808,14]
[359935598,1746432653680,-400.0,0.00037808,14]
[359935599,1746432653691,-378.09,0.00037808,14]
[359935600,1746432653700,-400.0,0.00037808,14]
[359935601,1746432653709,-1359.03,0.00037808,14]
[359935602,1746432653719,-407.84,0.00037808,14]
[359935603,1746432653728,-400.0,0.00037808,14]
[359935604,1746432653737,-400.0,0.00037808,14]
[359935605,1746432653747,-400.0,0.00037808,14]
[359935606,1746432653756,-478.13,0.00037808,14]
[359935607,1746432653766,-400.0,0.00037808,14]
[359935608,1746432653775,-400.0,0.00037808,14]
[359935609,1746432653784,-991.79,0.00037808,14]
[359935610,1746432653794,-400.0,0.00037808,14]
[359935611,1746432653803,-20929.32,0.00037808,14]
[359935612,1746432653812,-473.96,0.00037808,14]
[359935613,1746432653821,-710.15,0.00037808,14]
[359935614,1746432653831,-1011.15,0.00037808,14]
[359935615,1746432653840,-400.0,0.00037808,14]
[359935616,1746432653849,-400.0,0.00037808,14]
[359935617,1746432653859,-1281.84,0.00037808,14]
[359935618,1746432653869,-400.0,0.00037808,14]
[359935619,1746432653878,-1335.19,0.00037808,14]
[359935620,1746432653888,-593.4,0.00037808,14]
[359935621,1746432653898,-2951.14,0.00037808,14]
[359935622,1746432653908,-400.0,0.00037808,14]
[359935623,1746432653918,-400.0,0.00037808,14]
[359935624,1746432653929,-400.0,0.00037808,14]
[359935625,1746432653939,-400.0,0.00037808,14]
[359935626,1746432653950,-408.97970227,0.00037808,14]
[359935627,1746432653959,-400.0,0.00037808,14]
[359935628,1746432653968,-562.12,0.00037808,14]
[359935629,1746432653979,-1758.11,0.00037808,14]
[359935630,1746432653990,-1394.95,0.00037808,14]
[359935631,1746432654002,-400.0,0.00037808,14]
[359935632,1746432654011,-400.0,0.00037808,14]
[359935633,1746432654021,-492.47,0.00037808,14]
[359935634,1746432654031,-902.78,0.00037808,14]
[359935635,1746432654040,-785.12,0.00037808,14]
[359935636,1746432654049,-460.9,0.00037808,14]
[359935637,1746432654059,-433.08,0.00037808,14]
[359935638,1746432654069,-448.81,0.00037808,14]
[359935639,1746432654080,-400.0,0.00037808,14]
[359935640,1746432654090,-400.0,0.00037808,14]
[359935641,1746432654099,-400.0,0.00037808,14]
[359935642,1746432654109,-400.0,0.00037808,14]
[359935643,1746432654119,-1058.9,0.00037808,14]
[359935644,1746432654127,-2659.22,0.00037808,14]
[359935645,1746432654137,-712.06,0.00037808,14]
[359935646,1746432654146,-910.59,0.00037808,14]
[359935647,1746432654155,-400.0,0.00037808,14]
[359935648,1746432654165,-973.17,0.00037808,14]
[359935649,1746432654174,-400.0,0.00037808,14]
[359935650,1746432654184,-1034.34611204,0.00037811,6]
[359935651,1746432654193,-44685.18890553,0.00038,10]
[359935652,1746432654403,-400.0,0.00035616,14]
[359935653,1746432654413,-3228.03618014,0.00038,10]
[359935661,1746433637132,-300.0,0.00023997,2]
[359935662,1746433637164,-680.4903652,0.00023998,2]
[359935663,1746433637194,-680.4903652,0.00023998,2]
[359935664,1746433637224,-680.4903652,0.00023998,2]
[359935665,1746433637255,-680.4903652,0.00023998,2]
[359935666,1746433637285,-680.4903652,0.00023998,2]
[359935667,1746433637315,-680.4903652,0.00023998,2]
[359935668,1746433637342,-680.4903652,0.00023998,2]
[359935669,1746433637372,-232.93865911,0.00023998,2]
[359935671,1746433673030,3919.40902783,0.00016,2]
[359935672,1746433694315,7361.60125364,0.000125,2]
[359935673,1746433708347,279.65930319,0.0001,2]
[359935674,1746433714087,28343.45151802,0.00017,2]
[359935675,1746433718458,574.18743398,0.000149,2]
[359935676,1746433719564,16818.94424635,0.00018,2]
[359935678,1746433722336,9488.76273075,0.00015,2]
[359935679,1746433732020,-16778.0,0.00021,7]
[359935680,1746433752109,-17.27439519,0.00021,7]
[359935681,1746433752129,-500.0,0.00023659,2]
[359935682,1746433752151,-644.78538158,0.00023898,2]
[359935683,1746433752173,-300.0,0.00023996,2]
[359935684,1746433752205,-630.52665304,0.00023997,2]
[359935685,1746433752235,-630.52665304,0.00023997,2]
[359935686,1746433752265,-630.52665304,0.00023997,2]
[359935687,1746433752294,-630.52665304,0.00023997,2]
[359935688,1746433752323,-630.52665304,0.00023997,2]
[359935689,1746433752354,-630.52665304,0.00023997,2]
[359935690,1746433752384,-630.52665304,0.00023997,2]
[359935691,1746433752414,-630.52665304,0.00023997,2]
[359935692,1746433752445,-630.52665304,0.00023997,2]
[359935693,1746433752474,-630.52665304,0.00023997,2]
[359935694,1746433752503,-630.52665304,0.00023997,2]
[359935695,1746433752533,-630.52665304,0.00023997,2]
[359935696,1746433752562,-630.52665304,0.00023997,2]
[359935697,1746433752592,-630.52665304,0.00023997,2]
[359935698,1746433752622,-630.52665304,0.00023997,2]
[359935699,1746433752652,-630.52665304,0.00023997,2]
[359935700,1746433752684,-630.52665304,0.00023997,2]
[359935701,1746433752715,-630.52665304,0.00023997,2]
[359935702,1746433752747,-630.52665304,0.00023997,2]
[359935703,1746433752777,-630.52665304,0.00023997,2]
[359935704,1746433752812,-630.52665304,0.00023997,2]
[359935705,1746433752843,-630.52665304,0.00023997,2]
[359935706,1746433752875,-630.52665304,0.00023997,2]
[359935707,1746433752908,-630.52665304,0.00023997,2]
[359935708,1746433752940,-630.52665304,0.00023997,2]
[359935709,1746433752972,-630.52665304,0.00023997,2]
[359935710,1746433753002,-215.48247785,0.00023997,2]
[359935711,1746433759146,-415.04417519,0.00023997,2]
[359935712,1746433759175,-630.52665304,0.00023997,2]
[359935713,1746433759207,-630.52665304,0.00023997,2]
[359935714,1746433759236,-630.52665304,0.00023997,2]
[359935715,1746433759263,-630.52665304,0.00023997,2]
[359935716,1746433759290,-630.52665304,0.00023997,2]
[359935717,1746433759321,-630.52665304,0.00023997,2]
[359935718,1746433759349,-630.52665304,0.00023997,2]
[359935719,1746433759376,-630.52665304,0.00023997,2]
[359935720,1746433759403,-630.52665304,0.00023997,2]
[359935721,1746433759428,-630.52665304,0.00023997,2]
[359935722,1746433759455,-630.52665304,0.00023997,2]
[359935723,1746433759480,-630.52665304,0.00023997,2]
[359935724,1746433759507,-630.52665304,0.00023997,2]
[359935725,1746433759532,-630.52665304,0.00023997,2]
[359935726,1746433759558,-630.52665304,0.00023997,2]
[359935727,1746433759584,-630.52665304,0.00023997,2]
[359935728,1746433759610,-630.52665304,0.00023997,2]
[359935729,1746433759636,-630.52665304,0.00023997,2]
[359935730,1746433759662,-621.51912943,0.00023997,2]
[359935731,1746433759688,-621.51912943,0.00023997,2]
[359935732,1746433759714,-621.51912943,0.00023997,2]
[359935733,1746433759740,-621.51912943,0.00023997,2]
[359935734,1746433759766,-621.51912943,0.00023997,2]
[359935735,1746433759791,-621.51912943,0.00023997,2]
[359935736,1746433759956,-621.51912943,0.00023997,2]
[359935737,1746433759984,-621.51912943,0.00023997,2]
[359935738,1746433760014,-621.51912943,0.00023997,2]
[359935739,1746433760041,-621.51912943,0.00023997,2]
[359935740,1746433760070,-621.51912943,0.00023997,2]
[359935741,1746433760098,-621.51912943,0.00023997,2]
[359935742,1746433760124,-621.51912943,0.00023997,2]
[359935743,1746433760149,-621.51912943,0.00023997,2]
[359935744,1746433760175,-621.51912943,0.00023997,2]
[359935745,1746433760200,-621.51912943,0.00023997,2]
[359935746,1746433760225,-621.51912943,0.00023997,2]
[359935747,1746433760251,-621.51912943,0.00023997,2]
[359935748,1746433760277,-621.51912943,0.00023997,2]
[359935749,1746433760302,-621.51912943,0.00023997,2]
[359935750,1746433760327,-621.51912943,0.00023997,2]
[359935751,1746433760352,-621.51912943,0.00023997,2]
[359935752,1746433760377,-621.51912943,0.00023997,2]
[359935753,1746433760402,-621.51912943,0.00023997,2]
[359935754,1746433760429,-621.51912943,0.00023997,2]
[359935755,1746433760456,-621.51912943,0.00023997,2]
[359935756,1746433760482,-621.51912943,0.00023997,2]
[359935757,1746433760508,-621.51912943,0.00023997,2]
[359935758,1746433760535,-621.51912943,0.00023997,2]
[359935759,1746433760560,-605.98115118,0.00023997,2]
[359935760,1746433760587,-605.98115118,0.00023997,2]
[359935761,1746433760612,-605.98115118,0.00023997,2]
[359935762,1746433760638,-605.98115118,0.00023997,2]
[359935763,1746433760664,-605.98115118,0.00023997,2]
[359935764,1746433760690,-605.98115118,0.00023997,2]
[359935765,1746433760715,-605.98115118,0.00023997,2]
[359935766,1746433760740,-605.98115118,0.00023997,2]
[359935767,1746433760765,-605.98115118,0.00023997,2]
[359935768,1746433760793,-605.98115118,0.00023997,2]
[359935769,1746433760823,-605.98115118,0.00023997,2]
[359935770,1746433760854,-605.98115118,0.00023997,2]
[359935771,1746433760873,-355.51108401,0.00023998,2]
[359935772,1746433760893,-500.0,0.00023998,2]
[359935773,1746433760912,-195.24430656,0.00023998,2]
[359935774,1746433760932,-200.5040942,0.00023998,2]
[359935775,1746433760951,-467.2185692,0.00023998,2]
[359935776,1746433760970,-24900.0,0.00023999,2]
[359935777,1746433760989,-1002.96168058,0.00024,10]
[359935778,1746433761009,-500.0,0.00024375,2]
[359935779,1746433761028,-501.87833635,0.00024375,2]
[359935780,1746433761048,-500.0,0.00024375,2]
[359935781,1746433761069,-321.30935514,0.00024375,2]
[359935782,1746433761108,-178.69064486,0.00024375,2]
[359935783,1746433761127,-500.0,0.00024375,2]
[359935784,1746433761147,-500.0,0.00024375,2]
[359935785,1746433761166,-228.8968244,0.00024734,2]
[359935786,1746433761186,-14452.8208571,0.0002499,2]
[359935787,1746433761206,-601.72954908,0.0002499,2]
[359935788,1746433761224,-300.0,0.00024997,2]
[359935789,1746433761243,-300.0,0.00024997,2]
[359935790,1746433761266,-1200.0,0.00024997,2]
[359935791,1746433761289,-20397.0,0.00024998,2]
[359935792,1746433761308,-3734.68003434,0.00024999,5]
[359935793,1746433761330,-11529.71251334,0.00025,2]
[359935794,1746433761351,-10105.21794191,0.00025,2]
[359935795,1746433761369,-452.99999931,0.00025,5]
[359935796,1746433761388,-172.006997,0.0002504,2]
[359935797,1746433761408,-501.12682132,0.00025543,2]
[359935798,1746433761429,-839.975521,0.000256,13]
[359935799,1746433761450,-839.97552099,0.000256,13]
[359935800,1746433761469,-315.65,0.0002599,3]
[359935801,1746433761488,-473.47,0.0002599,3]
[359935802,1746433761510,-236.73,0.0002599,3]
[359935803,1746433761531,-710.22,0.0002599,3]
[359935804,1746433761550,-250.0,0.00025998,2]
[359935805,1746433761570,-7929.87191899,0.00026,10]
[359935806,1746433765204,-13757.70279544,0.00026,10]
[359935807,1746433773170,-16841.78535998,0.00026,10]
[359935808,1746433773197,-839.97552099,0.00026003,14]
[359935809,1746433773223,-420.0,0.00026022,2]
[359935810,1746433773248,-644.78538155,0.00026264,2]
[359935811,1746433773274,-709.372625,0.00026359,2]
[359935812,1746433773299,-839.97552099,0.00026555,15]
[359935813,1746433773324,-398.0593844,0.0002695,2]
[359935814,1746433773351,-500.0,0.0002695,2]
[359935815,1746433773373,-500.0,0.0002695,2]
[359935816,1746433773398,-839.97552099,0.00027107,16]
[359935817,1746433773419,-631.3,0.0002736,3]
[359935818,1746433773440,-946.94,0.0002736,3]
[359935819,1746433773462,-473.46,0.0002736,3]
[359935820,1746433773679,-447.078721,0.00027397,2]
[359935821,1746433773702,-839.97552099,0.00027659,17]
[359935822,1746433773724,-151.0,0.00027951,2]
[359935823,1746433773744,-554.87024308,0.000282,5]
[359935824,1746433773768,-500.0,0.000282,5]
[359935825,1746433773790,-839.97552099,0.0002821,18]
[359935826,1746433773812,-481.0,0.0002822,2]
[359935827,1746433773833,-644.78538155,0.00028629,2]
[359935828,1746433773854,-839.97552099,0.00028762,19]
[359935829,1746433773878,-187.82918276,0.00029,10]
[359935830,1746433773899,-839.97552099,0.00029314,20]
[359935831,1746433773919,-743.67468235,0.00029854,5]
[359935832,1746433773939,-1000.0,0.00029854,5]
[359935833,1746433773959,-500.0,0.00029854,5]
[359935834,1746433773982,-839.97552099,0.00029866,21]
[359935835,1746433774005,-33963.1373023,0.0003,2]
[359935860,1746433832436,-963.99976878,0.000279,2]
[359935861,1746433832541,-277.10858576,0.000279,2]
[359935862,1746433832552,-313.81875325,0.00028,10]
[359935863,1746433832562,-151.14999302,0.00029895,5]
[359935864,1746433832571,-1200.0,0.00029999,2]
[359935865,1746433832580,-7907.94707478,0.0003,2]
[359935866,1746433832589,-155.71470018,0.00030137,2]
[359935867,1746433832601,-839.97552099,0.00030417,22]
[359935868,1746433832610,-160.0,0.00030611,2]
[359935869,1746433832622,-182.23035355,0.00030611,2]
[359935870,1746433832633,-421.83547488,0.00030611,2]
[359935871,1746433832643,-839.97552099,0.00030969,24]
[359935872,1746433832653,-644.78538155,0.00030995,2]
[359935873,1746433832664,-490.35286594,0.00031319,2]
[359935874,1746433832673,-248.8577588,0.00031319,2]
[359935875,1746433832682,-45911.35622947,0.0003132,2]
[359935876,1746433832691,-839.97552099,0.00031521,25]
[359935877,1746433832700,-359.17390002,0.00031643,7]
[359935878,1746433832710,-500.0,0.000317,5]
[359935879,1746433832722,-150.0,0.00031725,5]
[359935880,1746433832733,-501.89045152,0.00031725,5]
[359935881,1746433832742,-172.006997,0.0003189,2]
[359935882,1746433832750,-47350.01110594,0.00032,30]
[359935883,1746433832760,-7666.9730104,0.00032,30]
[359935884,1746433832770,-839.97552099,0.00032072,26]
[359935885,1746433832780,-166.0,0.00032247,3]
[359935886,1746433832789,-1000.0,0.00032429,5]
[359935887,1746433832799,-1000.0,0.00032429,2]
[359935888,1746433832809,-839.97552099,0.00032624,27]
[359935889,1746433832819,-164.65461376,0.00032877,2]
[359935890,1746433832832,-1438.73,0.000329,7]
[359935891,1746433832843,-14461.04,0.000329,30]
[359935892,1746433832856,-1241.10835454,0.000329,2]
[359935893,1746433832866,-447.078721,0.00033165,2]
[359935894,1746433832877,-839.97552099,0.00033176,28]
[359935895,1746433832886,-644.78538155,0.0003336,2]
[359935896,1746433832898,-14452.8208571,0.00033455,2]
[359935897,1746433832910,-601.72954908,0.00033455,2]
[359935898,1746433832920,-5000.0,0.00033464,2]
[359935899,1746433832929,-839.97552099,0.00033728,29]
[359935900,1746433832938,-839.97552099,0.00034279,30]
[359935901,1746433832948,-151.0,0.0003435,2]
[359935902,1746433832958,-212.85546804,0.0003435,2]
[359935903,1746433832969,-207.4,0.0003435,2]
[359935904,1746433832979,-152.24829051,0.0003435,2]
[359935905,1746433832989,-14452.8208571,0.0003479,2]
[359935906,1746433832999,-601.72954908,0.0003479,2]
[359935907,1746433833008,-52086.77491433,0.000348,2]
[359935908,1746433833018,-839.97552099,0.00034831,31]
[359935909,1746433833027,-43358.4625714,0.0003499,2]
[359935910,1746433833037,-1805.18864724,0.0003499,2]
[359935911,1746433833047,-1000.0,0.0003499,2]
[359935912,1746433833056,-30478.46906197,0.00035,2]
[359935913,1746433833068,-3738.183028,0.00035,2]
[359935935,1746433838834,-500.0,0.00031319,2]
[359935936,1746433838843,-500.0,0.00031319,2]
[359935937,1746433838853,-500.0,0.00031319,2]
[359935938,1746433838862,-500.0,0.00031319,2]
[359935939,1746433838873,-500.0,0.00031319,2]
[359935940,1746433838883,-500.0,0.00031319,2]
[359935941,1746433838892,-500.0,0.00031319,2]
[359935942,1746433838902,-500.0,0.00031319,2]
[359935943,1746433838912,-500.0,0.00031319,2]
[359935944,1746433838921,-500.0,0.00031319,2]
[359935945,1746433838931,-500.0,0.00031319,2]
[359935946,1746433838941,-444.82361469,0.00031319,2]
[359935947,1746433838950,-500.0,0.00031319,2]
[359935948,1746433838959,-500.0,0.00031319,2]
[359935949,1746433838968,-500.0,0.00031319,2]
[359935950,1746433838978,-500.0,0.00031319,2]
[359935951,1746433838987,-500.0,0.00031319,2]
[359935952,1746433838997,-292.91921036,0.00032877,2]
[359935953,1746433839006,-53427.42146422,0.00035,2]
[359935954,1746433839018,-70836.35666896,0.00035,2]
[359935955,1746433839027,-217.12275,0.00035,5]
[359935956,1746433839037,-944.75017835,0.000351,2]
[359935957,1746433839046,-14461.04,0.000351,30]
[359935958,1746433839056,-160.0,0.00035314,3]
[359935959,1746433839066,-944.75017831,0.00035341,2]
[359935960,1746433839076,-944.75017831,0.00035582,2]
[359935961,1746433839085,-841.77443764,0.00035585,2]
[359935962,1746433839094,-182.23035355,0.00035596,3]
[359935963,1746433839104,-841.77443764,0.00035596,3]
[359935964,1746433839113,-160.0,0.00035596,3]
[359935965,1746433839123,-160.0,0.00035596,3]
[359935966,1746433839132,-14452.8208571,0.00035596,3]
[359935967,1746433839142,-601.72954908,0.00035596,3]
[359935968,1746433839151,-1438.73,0.000356,7]
[359935969,1746433839160,-57811.2834286,0.00035606,3]
[359935970,1746433839170,-2406.91819632,0.00035606,3]
[359935971,1746433839180,-400.0,0.00035616,14]
[359935972,1746433839190,-400.0,0.00035616,14]
[359935973,1746433839200,-400.0,0.00035616,14]
[359935974,1746433839367,-424.58041572,0.00035616,14]
[359935975,1746433839377,-400.0,0.00035616,14]
[359935976,1746433839387,-400.0,0.00035616,14]
[359935977,1746433839397,-400.0,0.00035616,14]
[359935978,1746433839406,-208.12118685,0.00035616,14]
[359935979,1746433839417,-400.0,0.00035616,14]
[359935980,1746433839427,-400.0,0.00035616,14]
[359935981,1746433839437,-274.43157577,0.00035616,14]
[359935982,1746433839447,-400.0,0.00035616,14]
[359935983,1746433839456,-400.0,0.00035616,14]
[359935984,1746433839466,-400.0,0.00035616,14]
[359935985,1746433839475,-400.0,0.00035616,14]
[359935986,1746433839485,-400.0,0.00035616,14]
[359935987,1746433839494,-400.0,0.00035616,14]
[359935988,1746433839504,-401.59942825,0.00035616,14]
[359935989,1746433839514,-400.0,0.00035616,14]
[359935990,1746433839524,-400.0,0.00035616,14]
[359935991,1746433839533,-402.09651185,0.00035616,14]
[359935992,1746433839542,-400.0,0.00035616,14]
[359935993,1746433839551,-400.0,0.00035616,14]
[359935994,1746433839561,-400.0,0.00035616,14]
[359935995,1746433839570,-400.0,0.00035616,14]
[359935996,1746433839579,-400.0,0.00035616,14]
[359935997,1746433839588,-400.0,0.00035616,14]
[359935998,1746433839597,-244.62846713,0.00035616,14]
[359935999,1746433839607,-530.49086638,0.00035616,14]
[359936000,1746433839617,-207.49507218,0.00035616,14]
[359936001,1746433839626,-281.10236224,0.00035616,14]
[359936002,1746433839637,-400.0,0.00035616,14]
[359936003,1746433839646,-400.0,0.00035616,14]
[359936004,1746433839655,-400.0,0.00035616,14]
[359936005,1746433839665,-400.0,0.00035616,14]
[359936006,1746433839675,-434.20150201,0.00035616,14]
[359936007,1746433839685,-407.73,0.00035616,14]
[359936008,1746433839695,-400.0,0.00035616,14]
[359936009,1746433839704,-400.0,0.00035616,14]
[359936010,1746433839713,-400.0,0.00035616,14]
[359936011,1746433839723,-400.0,0.00035616,14]
[359936012,1746433839733,-400.0,0.00035616,14]
[359936013,1746433839742,-400.0,0.00035616,14]
[359936014,1746433839752,-448.27974355,0.00035616,14]
[359936015,1746433839762,-400.0,0.00035616,14]
[359936016,1746433839772,-404.02571464,0.00035616,14]
[359936017,1746433839781,-400.0,0.00035616,14]
[359936019,1746433839790,-400.0,0.00035616,14]
[359936020,1746433839800,-658.66,0.00035616,14]
[359936021,1746433839809,-302.4372553,0.00035616,14]
[359936022,1746433839818,-400.0,0.00035616,14]
[359936023,1746433839831,-404.00223548,0.00035616,14]
[359936024,1746433839841,-400.0,0.00035616,14]
[359936025,1746433839851,-400.69389699,0.00035616,14]
[359936026,1746433839861,-500.92263608,0.00035616,14]
[359936027,1746433839870,-210.2352336,0.00035616,14]
[359936028,1746433839879,-400.0,0.00035616,14]
[359936029,1746433839889,-400.0,0.00035616,14]
[359936030,1746433839898,-533.35,0.00035616,14]
[359936031,1746433839907,-400.0,0.00035616,14]
[359936033,1746433839917,-400.0,0.00035616,14]
[359936034,1746433839927,-400.0,0.00035616,14]
[359936035,1746433839936,-400.0,0.00035616,14]
[359936036,1746433839946,-400.0,0.00035616,14]
[359936037,1746433839955,-400.0,0.00035616,14]
[359936038,1746433839965,-400.0,0.00035616,14]
[359936039,1746433839975,-400.0,0.00035616,14]
[359936040,1746433839985,-978.1,0.00035616,14]